[Event "*** SCC Grand Prix: Titled Tuesday Blitz"]
[Site "Chess.com"]
[Date "2020.07.21"]
[Round "3"]
[White "lelya96"]
[Black "enkhtuul"]
[Result "1-0"]
[WhiteElo "2183"]
[BlackElo "2375"]
[TimeControl "180+1"]
[EndTime "10:24:44 PDT"]
[Termination "lelya96 won by resignation"]

1. e4 {[%clk 0:03:00.9]} 1... Nf6 {[%clk 0:02:59.2]} 2. e5 {[%clk 0:02:49.4]}
2... Nd5 {[%clk 0:02:58.9]} 3. d4 {[%clk 0:02:48.6]} 3... d6 {[%clk 0:02:58.6]}
4. Nf3 {[%clk 0:02:45.8]} 4... Bg4 {[%clk 0:02:57.9]} 5. Be2 {[%clk 0:02:42.2]}
5... e6 {[%clk 0:02:57]} 6. O-O {[%clk 0:02:40.2]} 6... Be7 {[%clk 0:02:55.9]}
7. c4 {[%clk 0:02:28.6]} 7... Nb6 {[%clk 0:02:55]} 8. Nc3 {[%clk 0:02:28]} 8...
O-O {[%clk 0:02:54.4]} 9. Be3 {[%clk 0:02:16.9]} 9... N8d7 {[%clk 0:02:53.4]}
10. exd6 {[%clk 0:02:14]} 10... cxd6 {[%clk 0:02:52.8]} 11. b3 {[%clk
0:02:11.7]} 11... d5 {[%clk 0:02:47.8]} 12. Rc1 {[%clk 0:02:06.7]} 12... Bxf3
{[%clk 0:02:45]} 13. Bxf3 {[%clk 0:02:05.9]} 13... dxc4 {[%clk 0:02:45.1]} 14.
Bxb7 {[%clk 0:02:00.4]} 14... Rb8 {[%clk 0:02:45]} 15. Be4 {[%clk 0:01:56.1]}
15... Nf6 {[%clk 0:02:44]} 16. Bb1 {[%clk 0:01:53.4]} 16... cxb3 {[%clk
0:02:42.3]} 17. axb3 {[%clk 0:01:51.3]} 17... Nbd5 {[%clk 0:02:42.1]} 18. Ne4
{[%clk 0:01:44.1]} 18... Ba3 {[%clk 0:02:31.7]} 19. Rc4 {[%clk 0:01:39.2]} 19...
Nxe3 {[%clk 0:02:29.9]} 20. fxe3 {[%clk 0:01:38.6]} 20... Nxe4 {[%clk
0:02:29.3]} 21. Bxe4 {[%clk 0:01:38]} 21... Qh4 {[%clk 0:02:28.5]} 22. d5 {[%clk
0:01:29.5]} 22... Qh6 {[%clk 0:02:25.9]} 23. d6 {[%clk 0:01:24.7]} 23... Rbd8
{[%clk 0:02:24.7]} 24. d7 {[%clk 0:01:23.2]} 24... Qxe3+ {[%clk 0:02:24.2]} 25.
Kh1 {[%clk 0:01:22.8]} 25... f5 {[%clk 0:02:24.1]} 26. Bc6 {[%clk 0:01:22.1]}
26... h6 {[%clk 0:02:14.3]} 27. Re1 {[%clk 0:01:16.7]} 27... Qf4 {[%clk
0:02:13.5]} 28. Rxe6 {[%clk 0:01:14]} 28... Rf7 {[%clk 0:02:13.6]} 29. Rxf4
{[%clk 0:01:13.1]} 1-0

[Event "*** SCC Grand Prix: Titled Tuesday Blitz"]
[Site "Chess.com"]
[Date "2020.07.21"]
[Round "3"]
[White "vanyakuba"]
[Black "promen1999"]
[Result "0-1"]
[WhiteElo "2446"]
[BlackElo "2827"]
[TimeControl "180+1"]
[EndTime "10:24:51 PDT"]
[Termination "promen1999 won by resignation"]

1. e4 {[%clk 0:02:58.7]} 1... c5 {[%clk 0:02:58.2]} 2. c3 {[%clk 0:02:58.5]}
2... Qa5 {[%clk 0:02:57.2]} 3. Nf3 {[%clk 0:02:57.7]} 3... Nc6 {[%clk
0:02:56.5]} 4. Na3 {[%clk 0:02:57.6]} 4... Nf6 {[%clk 0:02:56.5]} 5. Nc4 {[%clk
0:02:56.7]} 5... Qc7 {[%clk 0:02:57]} 6. e5 {[%clk 0:02:52.6]} 6... d5 {[%clk
0:02:54.2]} 7. exf6 {[%clk 0:02:42.9]} 7... dxc4 {[%clk 0:02:54.7]} 8. fxg7
{[%clk 0:02:43]} 8... Bxg7 {[%clk 0:02:55.6]} 9. Bxc4 {[%clk 0:02:43.2]} 9...
Rg8 {[%clk 0:02:42.3]} 10. d3 {[%clk 0:01:29.6]} 10... Bf6 {[%clk 0:02:41.2]}
11. g3 {[%clk 0:01:04.3]} 11... Bg4 {[%clk 0:02:24]} 12. h3 {[%clk 0:01:04]}
12... Bh5 {[%clk 0:02:24.5]} 13. g4 {[%clk 0:00:52.6]} 13... Bg6 {[%clk
0:02:24.7]} 14. Be3 {[%clk 0:00:53.1]} 14... O-O-O {[%clk 0:02:24.7]} 15. Qe2
{[%clk 0:00:29.7]} 15... Na5 {[%clk 0:02:24.7]} 16. O-O-O {[%clk 0:00:20.7]}
16... Nxc4 {[%clk 0:02:24.4]} 17. dxc4 {[%clk 0:00:21.4]} 17... Qa5 {[%clk
0:02:25.3]} 18. b3 {[%clk 0:00:14.9]} 18... Qxc3+ {[%clk 0:02:24.6]} 0-1

[Event "*** SCC Grand Prix: Titled Tuesday Blitz"]
[Site "Chess.com"]
[Date "2020.07.21"]
[Round "3"]
[White "Kirill_Klukin"]
[Black "davigator"]
[Result "1-0"]
[WhiteElo "2720"]
[BlackElo "2335"]
[TimeControl "180+1"]
[EndTime "10:24:53 PDT"]
[Termination "Kirill_Klukin won by resignation"]

1. d4 {[%clk 0:03:00.9]} 1... Nf6 {[%clk 0:02:59.1]} 2. Nf3 {[%clk 0:03:00.7]}
2... e6 {[%clk 0:02:59]} 3. e3 {[%clk 0:03:00.8]} 3... b6 {[%clk 0:02:56.5]} 4.
Bd3 {[%clk 0:03:01.4]} 4... d5 {[%clk 0:02:54.9]} 5. O-O {[%clk 0:03:02.3]} 5...
Be7 {[%clk 0:02:55.1]} 6. c4 {[%clk 0:03:02.8]} 6... O-O {[%clk 0:02:54.9]} 7.
cxd5 {[%clk 0:03:03.4]} 7... exd5 {[%clk 0:02:54.4]} 8. b3 {[%clk 0:03:04.1]}
8... Ba6 {[%clk 0:02:51.1]} 9. Bxa6 {[%clk 0:03:01.2]} 9... Nxa6 {[%clk
0:02:50.4]} 10. Bb2 {[%clk 0:03:02.1]} 10... Bd6 {[%clk 0:02:43.7]} 11. Nc3
{[%clk 0:03:01.8]} 11... c6 {[%clk 0:02:43]} 12. Rc1 {[%clk 0:03:01.9]} 12...
Rc8 {[%clk 0:02:41.2]} 13. Ne2 {[%clk 0:03:02]} 13... Re8 {[%clk 0:02:38.3]} 14.
Qd3 {[%clk 0:03:01.7]} 14... Nb8 {[%clk 0:02:38.2]} 15. Ne5 {[%clk 0:03:01.4]}
15... Ne4 {[%clk 0:02:35.6]} 16. f3 {[%clk 0:02:57.2]} 16... Nf6 {[%clk
0:02:23.2]} 17. Ng3 {[%clk 0:02:55.1]} 17... g6 {[%clk 0:02:21.9]} 18. f4 {[%clk
0:02:47.8]} 18... Qe7 {[%clk 0:01:57.5]} 19. f5 {[%clk 0:02:41]} 19... Ne4
{[%clk 0:01:54.7]} 20. fxg6 {[%clk 0:02:27.3]} 20... f6 {[%clk 0:01:46.2]} 21.
Nxe4 {[%clk 0:02:21.6]} 21... dxe4 {[%clk 0:01:42.9]} 22. Qc4+ {[%clk
0:02:21.2]} 22... Kg7 {[%clk 0:01:40.7]} 23. Ng4 {[%clk 0:01:47.2]} 23... f5
{[%clk 0:01:32.9]} 24. Rxf5 {[%clk 0:01:41]} 24... Kxg6 {[%clk 0:01:32.2]} 25.
Rcf1 {[%clk 0:01:38.6]} 25... Rf8 {[%clk 0:01:31.2]} 26. Rf6+ {[%clk 0:01:35.3]}
26... Rxf6 {[%clk 0:01:30.8]} 27. Rxf6+ {[%clk 0:01:35.2]} 27... Kg7 {[%clk
0:01:29]} 28. d5 {[%clk 0:01:34.1]} 28... Be5 {[%clk 0:01:29.1]} 29. Bxe5 {[%clk
0:01:33.7]} 1-0

[Event "*** SCC Grand Prix: Titled Tuesday Blitz"]
[Site "Chess.com"]
[Date "2020.07.21"]
[Round "3"]
[White "2008king"]
[Black "Oglob71"]
[Result "0-1"]
[WhiteElo "2251"]
[BlackElo "2517"]
[TimeControl "180+1"]
[EndTime "10:25:13 PDT"]
[Termination "Oglob71 won by resignation"]

1. e4 {[%clk 0:03:00.9]} 1... c5 {[%clk 0:02:58.9]} 2. Nf3 {[%clk 0:03:00]} 2...
e6 {[%clk 0:02:59.5]} 3. d4 {[%clk 0:02:59.1]} 3... cxd4 {[%clk 0:02:59.9]} 4.
Nxd4 {[%clk 0:03:00]} 4... Nf6 {[%clk 0:02:59.2]} 5. Nc3 {[%clk 0:03:00.3]} 5...
Bb4 {[%clk 0:02:59.7]} 6. e5 {[%clk 0:02:58.3]} 6... Nd5 {[%clk 0:02:59.6]} 7.
Qg4 {[%clk 0:02:51.4]} 7... O-O {[%clk 0:02:58.1]} 8. Bd2 {[%clk 0:02:38.9]}
8... Qa5 {[%clk 0:02:11.8]} 9. Nb3 {[%clk 0:02:24]} 9... Qc7 {[%clk 0:02:06]}
10. Nxd5 {[%clk 0:02:19.7]} 10... Bxd2+ {[%clk 0:02:05.9]} 11. Nxd2 {[%clk
0:02:20.6]} 11... exd5 {[%clk 0:02:05.6]} 12. Qg3 {[%clk 0:02:06.5]} 12... Nc6
{[%clk 0:02:03.8]} 13. f4 {[%clk 0:01:57.5]} 13... d6 {[%clk 0:02:03.2]} 14. Nf3
{[%clk 0:01:54.6]} 14... Bf5 {[%clk 0:02:01.7]} 15. Bd3 {[%clk 0:01:50.6]} 15...
Qa5+ {[%clk 0:01:55.7]} 16. Nd2 {[%clk 0:01:48.7]} 16... Bxd3 {[%clk 0:01:52.6]}
17. cxd3 {[%clk 0:01:49.6]} 17... dxe5 {[%clk 0:01:52]} 18. fxe5 {[%clk
0:01:50.1]} 18... Rae8 {[%clk 0:01:49.8]} 19. Rd1 {[%clk 0:01:24.9]} 19... Rxe5+
{[%clk 0:01:46]} 20. Kf2 {[%clk 0:01:24.2]} 20... Rfe8 {[%clk 0:01:46]} 21. Rhf1
{[%clk 0:01:23.6]} 21... Qc5+ {[%clk 0:01:43.1]} 22. Kf3 {[%clk 0:01:16.5]}
22... Nd4+ {[%clk 0:01:41.9]} 23. Kg4 {[%clk 0:01:16.1]} 23... Qc8+ {[%clk
0:01:38.3]} 24. Kh4 {[%clk 0:01:13.2]} 24... Nf5+ {[%clk 0:01:35.5]} 25. Rxf5
{[%clk 0:01:12.4]} 25... Qxf5 {[%clk 0:01:35.5]} 26. Qg4 {[%clk 0:01:10.8]}
26... Qf6+ {[%clk 0:01:31.1]} 27. Kg3 {[%clk 0:01:09.6]} 27... Rg5 {[%clk
0:01:30.5]} 28. Qxg5 {[%clk 0:01:08.8]} 0-1

[Event "*** SCC Grand Prix: Titled Tuesday Blitz"]
[Site "Chess.com"]
[Date "2020.07.21"]
[Round "3"]
[White "LimaRR"]
[Black "PotapovaM"]
[Result "0-1"]
[WhiteElo "2111"]
[BlackElo "2469"]
[TimeControl "180+1"]
[EndTime "10:25:21 PDT"]
[Termination "PotapovaM won by resignation"]

1. e4 {[%clk 0:03:00.7]} 1... c5 {[%clk 0:02:59.9]} 2. Nf3 {[%clk 0:02:58.1]}
2... d6 {[%clk 0:02:57.4]} 3. d4 {[%clk 0:02:58]} 3... cxd4 {[%clk 0:02:58.3]}
4. Nxd4 {[%clk 0:02:58.8]} 4... Nf6 {[%clk 0:02:58.7]} 5. Nc3 {[%clk 0:02:58.9]}
5... a6 {[%clk 0:02:59.4]} 6. Bg5 {[%clk 0:02:58.7]} 6... e6 {[%clk 0:02:59.7]}
7. Qe2 {[%clk 0:02:57.3]} 7... h6 {[%clk 0:02:59.4]} 8. Bh4 {[%clk 0:02:56.7]}
8... Be7 {[%clk 0:02:58.9]} 9. O-O-O {[%clk 0:02:56.4]} 9... Qc7 {[%clk
0:02:54.8]} 10. f4 {[%clk 0:02:55.3]} 10... Nbd7 {[%clk 0:02:47.2]} 11. g4
{[%clk 0:02:37.5]} 11... b5 {[%clk 0:02:43.4]} 12. a3 {[%clk 0:02:36.3]} 12...
Bb7 {[%clk 0:02:42.8]} 13. Bg2 {[%clk 0:02:33.1]} 13... O-O-O {[%clk 0:02:26.6]}
14. Bg3 {[%clk 0:02:21.1]} 14... e5 {[%clk 0:01:42.8]} 15. Nf5 {[%clk
0:02:10.4]} 15... Bf8 {[%clk 0:01:43]} 16. g5 {[%clk 0:02:02.6]} 16... hxg5
{[%clk 0:01:41.4]} 17. fxg5 {[%clk 0:02:02.1]} 17... Nh5 {[%clk 0:01:41.9]} 18.
Ne3 {[%clk 0:01:47.9]} 18... Nb6 {[%clk 0:01:40.1]} 19. Be1 {[%clk 0:00:53.2]}
19... Be7 {[%clk 0:01:37.5]} 20. h4 {[%clk 0:00:49.6]} 20... Nf4 {[%clk
0:01:38]} 21. Bf3 {[%clk 0:00:46.4]} 21... Nxe2+ {[%clk 0:01:37.2]} 0-1

[Event "*** SCC Grand Prix: Titled Tuesday Blitz"]
[Site "Chess.com"]
[Date "2020.07.21"]
[Round "3"]
[White "icychess54"]
[Black "Klaus1995"]
[Result "1-0"]
[WhiteElo "2272"]
[BlackElo "1900"]
[TimeControl "180+1"]
[EndTime "10:25:24 PDT"]
[Termination "icychess54 won by resignation"]

1. c4 {[%clk 0:03:00.9]} 1... Nf6 {[%clk 0:02:55.9]} 2. Nf3 {[%clk 0:03:01.3]}
2... e6 {[%clk 0:02:56.3]} 3. e3 {[%clk 0:03:01.7]} 3... c5 {[%clk 0:02:56.6]}
4. Nc3 {[%clk 0:03:02.2]} 4... d5 {[%clk 0:02:56.7]} 5. cxd5 {[%clk 0:03:01.7]}
5... Nxd5 {[%clk 0:02:56.3]} 6. d4 {[%clk 0:03:01.8]} 6... Be7 {[%clk
0:02:52.3]} 7. Be2 {[%clk 0:03:01.9]} 7... cxd4 {[%clk 0:02:47.3]} 8. Nxd4
{[%clk 0:03:01.2]} 8... a6 {[%clk 0:02:44.1]} 9. O-O {[%clk 0:02:59.8]} 9... O-O
{[%clk 0:02:42.9]} 10. Nxd5 {[%clk 0:02:50.6]} 10... Qxd5 {[%clk 0:02:42.5]} 11.
b3 {[%clk 0:02:50.9]} 11... Nd7 {[%clk 0:02:39.9]} 12. Bb2 {[%clk 0:02:49.9]}
12... Nf6 {[%clk 0:02:39.3]} 13. Bf3 {[%clk 0:02:43]} 13... Qa5 {[%clk
0:02:32.9]} 14. Rc1 {[%clk 0:02:37.3]} 14... e5 {[%clk 0:02:27.1]} 15. Ne2
{[%clk 0:02:19.1]} 15... e4 {[%clk 0:02:25.8]} 16. Bxf6 {[%clk 0:02:17.9]} 16...
Bxf6 {[%clk 0:02:25.1]} 17. Bxe4 {[%clk 0:02:17.4]} 17... Qxa2 {[%clk
0:02:24.9]} 18. Nd4 {[%clk 0:02:09.4]} 18... Rb8 {[%clk 0:02:20.3]} 19. Qd3
{[%clk 0:01:38.2]} 19... g6 {[%clk 0:02:16.5]} 20. Ra1 {[%clk 0:01:35.7]} 20...
Qb2 {[%clk 0:01:58.1]} 21. Rfb1 {[%clk 0:01:35.1]} 21... Bxd4 {[%clk 0:01:56.4]}
22. exd4 {[%clk 0:01:34.5]} 22... Qxb1+ {[%clk 0:01:41.3]} 23. Rxb1 {[%clk
0:01:33.9]} 23... b5 {[%clk 0:01:40.6]} 24. d5 {[%clk 0:01:33.3]} 24... Bb7
{[%clk 0:01:39.8]} 25. d6 {[%clk 0:01:33]} 25... Bxe4 {[%clk 0:01:38.6]} 26.
Qxe4 {[%clk 0:01:32.4]} 26... Rfd8 {[%clk 0:01:38.8]} 27. Rd1 {[%clk 0:01:31.6]}
27... Rb6 {[%clk 0:01:38.3]} 28. Qe7 {[%clk 0:01:28.3]} 28... Rbb8 {[%clk
0:01:35.9]} 29. h4 {[%clk 0:01:25.8]} 29... h5 {[%clk 0:01:35.1]} 30. d7 {[%clk
0:01:18.7]} 30... Kg7 {[%clk 0:01:33.9]} 31. Qe5+ {[%clk 0:01:10.8]} 31... Kg8
{[%clk 0:01:33.4]} 32. Qxb8 {[%clk 0:01:11.4]} 32... Rxb8 {[%clk 0:01:31.3]} 33.
d8=Q+ {[%clk 0:01:12]} 33... Rxd8 {[%clk 0:01:30.7]} 34. Rxd8+ {[%clk
0:01:12.9]} 1-0

[Event "*** SCC Grand Prix: Titled Tuesday Blitz"]
[Site "Chess.com"]
[Date "2020.07.21"]
[Round "3"]
[White "joksijoksi"]
[Black "chalowey97"]
[Result "0-1"]
[WhiteElo "2330"]
[BlackElo "2133"]
[TimeControl "180+1"]
[EndTime "10:25:33 PDT"]
[Termination "chalowey97 won by checkmate"]

1. e4 {[%clk 0:03:00.9]} 1... e6 {[%clk 0:03:00.1]} 2. d4 {[%clk 0:03:00.2]}
2... d5 {[%clk 0:03:00.2]} 3. exd5 {[%clk 0:03:01.1]} 3... exd5 {[%clk
0:03:00.1]} 4. Nf3 {[%clk 0:03:01.8]} 4... Bd6 {[%clk 0:02:58.1]} 5. c4 {[%clk
0:03:01.1]} 5... dxc4 {[%clk 0:02:57.5]} 6. Bxc4 {[%clk 0:03:02]} 6... Nc6
{[%clk 0:02:58]} 7. h3 {[%clk 0:02:56]} 7... Nf6 {[%clk 0:02:58.1]} 8. O-O
{[%clk 0:02:56.4]} 8... O-O {[%clk 0:02:58.1]} 9. Nc3 {[%clk 0:02:56.8]} 9...
Bf5 {[%clk 0:02:57.9]} 10. Re1 {[%clk 0:02:51.2]} 10... h6 {[%clk 0:02:55.9]}
11. a3 {[%clk 0:02:39.8]} 11... a6 {[%clk 0:02:55.3]} 12. Be3 {[%clk 0:02:39.1]}
12... Qd7 {[%clk 0:02:55.2]} 13. b4 {[%clk 0:02:34.8]} 13... Rfe8 {[%clk
0:02:54.9]} 14. Qb3 {[%clk 0:02:33.6]} 14... Rad8 {[%clk 0:02:51.7]} 15. Re2
{[%clk 0:02:30.4]} 15... Bf8 {[%clk 0:02:28.9]} 16. Rc1 {[%clk 0:02:07.9]} 16...
Bxh3 {[%clk 0:01:58.3]} 17. gxh3 {[%clk 0:02:03.1]} 17... Qxh3 {[%clk
0:01:51.3]} 18. Bxf7+ {[%clk 0:01:57.7]} 18... Kh8 {[%clk 0:01:51.5]} 19. Bxe8
{[%clk 0:01:53]} 19... Qxf3 {[%clk 0:01:44.7]} 20. Bxc6 {[%clk 0:01:52.5]} 20...
bxc6 {[%clk 0:01:44.1]} 21. Qf7 {[%clk 0:01:26.2]} 21... Bd6 {[%clk 0:01:27.4]}
22. Qg6 {[%clk 0:01:11.4]} 22... Ng4 {[%clk 0:01:27.3]} 23. Kf1 {[%clk
0:00:43.4]} 23... Qh1# {[%clk 0:01:25.5]} 0-1

[Event "*** SCC Grand Prix: Titled Tuesday Blitz"]
[Site "Chess.com"]
[Date "2020.07.21"]
[Round "3"]
[White "korkmaz16"]
[Black "Zurability"]
[Result "0-1"]
[WhiteElo "2340"]
[BlackElo "2570"]
[TimeControl "180+1"]
[EndTime "10:25:38 PDT"]
[Termination "Zurability won by resignation"]

1. d4 {[%clk 0:03:00.9]} 1... Nf6 {[%clk 0:02:58]} 2. Nf3 {[%clk 0:02:59.6]}
2... c5 {[%clk 0:02:57.3]} 3. d5 {[%clk 0:02:58.5]} 3... b5 {[%clk 0:02:56.3]}
4. e4 {[%clk 0:02:50.4]} 4... Nxe4 {[%clk 0:02:55.7]} 5. Bxb5 {[%clk 0:02:49.9]}
5... Qa5+ {[%clk 0:02:54.7]} 6. Nc3 {[%clk 0:02:42.2]} 6... Nxc3 {[%clk
0:02:54.2]} 7. Bxd7+ {[%clk 0:02:41.2]} 7... Nxd7 {[%clk 0:02:49.1]} 8. bxc3
{[%clk 0:02:40.5]} 8... Qxc3+ {[%clk 0:02:48.3]} 9. Bd2 {[%clk 0:02:40.7]} 9...
Qc4 {[%clk 0:02:48.5]} 10. Be3 {[%clk 0:02:39.1]} 10... Ba6 {[%clk 0:02:47.5]}
11. Qd2 {[%clk 0:02:34]} 11... g6 {[%clk 0:02:45.8]} 12. Qd3 {[%clk 0:01:49.6]}
12... Qb4+ {[%clk 0:02:17.5]} 13. Qd2 {[%clk 0:01:46.7]} 13... Bg7 {[%clk
0:02:16.4]} 14. Qxb4 {[%clk 0:01:45.4]} 14... cxb4 {[%clk 0:02:16.8]} 15. Rc1
{[%clk 0:01:45.9]} 15... Nb6 {[%clk 0:02:12.5]} 16. Bd4 {[%clk 0:01:04.7]} 16...
Bxd4 {[%clk 0:02:11]} 17. Nxd4 {[%clk 0:01:05.6]} 17... Nxd5 {[%clk 0:02:11.7]}
18. f3 {[%clk 0:01:02.6]} 18... Rc8 {[%clk 0:02:07]} 19. Kf2 {[%clk 0:01:01.8]}
19... O-O {[%clk 0:02:03.2]} 20. Rhe1 {[%clk 0:01:01.3]} 20... Rc4 {[%clk
0:01:53.9]} 21. Rcd1 {[%clk 0:00:50.8]} 21... Rfc8 {[%clk 0:01:52.5]} 22. Rd2
{[%clk 0:00:44.9]} 22... e6 {[%clk 0:01:50.9]} 23. g3 {[%clk 0:00:37.8]} 23...
Rc3 {[%clk 0:01:46.2]} 24. Re5 {[%clk 0:00:34.1]} 24... Ra3 {[%clk 0:01:41.5]}
25. Nb3 {[%clk 0:00:31.4]} 25... Rxa2 {[%clk 0:01:39.9]} 26. Ree2 {[%clk
0:00:29.4]} 26... Bxe2 {[%clk 0:01:39]} 0-1

[Event "*** SCC Grand Prix: Titled Tuesday Blitz"]
[Site "Chess.com"]
[Date "2020.07.21"]
[Round "3"]
[White "sm_sharon"]
[Black "HanSchut"]
[Result "0-1"]
[WhiteElo "2050"]
[BlackElo "2314"]
[TimeControl "180+1"]
[EndTime "10:25:45 PDT"]
[Termination "HanSchut won by resignation"]

1. e4 {[%clk 0:03:00]} 1... c5 {[%clk 0:02:57.2]} 2. Ne2 {[%clk 0:02:58.1]} 2...
d6 {[%clk 0:02:57.3]} 3. g3 {[%clk 0:02:58.1]} 3... g6 {[%clk 0:02:57.6]} 4. Bg2
{[%clk 0:02:58.2]} 4... Bg7 {[%clk 0:02:58.2]} 5. O-O {[%clk 0:02:57.4]} 5...
Nc6 {[%clk 0:02:58.8]} 6. c3 {[%clk 0:02:56.1]} 6... e6 {[%clk 0:02:59.3]} 7. d4
{[%clk 0:02:54.9]} 7... cxd4 {[%clk 0:02:59.2]} 8. cxd4 {[%clk 0:02:54.9]} 8...
Nge7 {[%clk 0:03:00.1]} 9. Nbc3 {[%clk 0:02:54.7]} 9... O-O {[%clk 0:02:58]} 10.
a3 {[%clk 0:02:52.9]} 10... Bd7 {[%clk 0:02:57.1]} 11. Be3 {[%clk 0:02:49.9]}
11... Rc8 {[%clk 0:02:56.8]} 12. Rc1 {[%clk 0:02:49.5]} 12... Na5 {[%clk
0:02:56.4]} 13. Rc2 {[%clk 0:02:41.2]} 13... Nc4 {[%clk 0:02:50.5]} 14. Bc1
{[%clk 0:02:40.9]} 14... b5 {[%clk 0:02:39.1]} 15. b3 {[%clk 0:02:21.2]} 15...
Nb6 {[%clk 0:02:27]} 16. Bb2 {[%clk 0:02:01.3]} 16... a5 {[%clk 0:02:25.6]} 17.
a4 {[%clk 0:01:34.2]} 17... bxa4 {[%clk 0:02:19.5]} 18. Nxa4 {[%clk 0:01:32]}
18... Nxa4 {[%clk 0:01:57.4]} 19. bxa4 {[%clk 0:01:30.4]} 19... Qb6 {[%clk
0:01:33]} 20. Rxc8 {[%clk 0:01:20.1]} 20... Rxc8 {[%clk 0:01:31.8]} 21. Qa1
{[%clk 0:01:06.1]} 21... Rc2 {[%clk 0:01:26.8]} 0-1

[Event "*** SCC Grand Prix: Titled Tuesday Blitz"]
[Site "Chess.com"]
[Date "2020.07.21"]
[Round "3"]
[White "Virgo15"]
[Black "Happy1712Drummer"]
[Result "1-0"]
[WhiteElo "2682"]
[BlackElo "2414"]
[TimeControl "180+1"]
[EndTime "10:25:47 PDT"]
[Termination "Virgo15 won by resignation"]

1. d4 {[%clk 0:03:00.9]} 1... e6 {[%clk 0:02:51.6]} 2. Nf3 {[%clk 0:02:58.8]}
2... Nf6 {[%clk 0:02:50.2]} 3. Bf4 {[%clk 0:02:59.1]} 3... c5 {[%clk 0:02:40.9]}
4. e3 {[%clk 0:02:59]} 4... Qb6 {[%clk 0:02:30.5]} 5. Na3 {[%clk 0:02:57.6]}
5... cxd4 {[%clk 0:02:17.7]} 6. Nb5 {[%clk 0:02:54.6]} 6... Nd5 {[%clk
0:02:10.7]} 7. Qxd4 {[%clk 0:02:51.7]} 7... Qxd4 {[%clk 0:02:00.1]} 8. Nfxd4
{[%clk 0:02:52.6]} 8... Nxf4 {[%clk 0:01:59.7]} 9. Nc7+ {[%clk 0:02:51.2]} 9...
Kd8 {[%clk 0:01:55.4]} 10. Nxa8 {[%clk 0:02:52.1]} 10... Nd5 {[%clk 0:01:49.8]}
11. O-O-O {[%clk 0:02:51.1]} 11... Nc6 {[%clk 0:01:39.3]} 12. e4 {[%clk
0:02:43.9]} 12... Ndb4 {[%clk 0:01:22.2]} 13. a3 {[%clk 0:02:22.2]} 13... Nxd4
{[%clk 0:01:12]} 14. axb4 {[%clk 0:02:22]} 14... e5 {[%clk 0:01:09.9]} 15. c3
{[%clk 0:02:20.9]} 15... Ne6 {[%clk 0:01:09.1]} 16. Bc4 {[%clk 0:02:17.4]} 16...
b6 {[%clk 0:01:03.5]} 17. Rd2 {[%clk 0:02:11.6]} 17... d6 {[%clk 0:00:58]} 18.
Bd5 {[%clk 0:02:03.2]} 18... Be7 {[%clk 0:00:57.1]} 19. Kc2 {[%clk 0:01:59.9]}
19... Nf4 {[%clk 0:00:44.2]} 20. Ra1 {[%clk 0:01:57.8]} 20... Nxd5 {[%clk
0:00:42]} 21. Rxd5 {[%clk 0:01:57.4]} 21... Bb7 {[%clk 0:00:39.3]} 22. Rxa7
{[%clk 0:01:56.2]} 22... Bxd5 {[%clk 0:00:35.3]} 23. exd5 {[%clk 0:01:57.1]}
23... Bg5 {[%clk 0:00:13.6]} 24. Nxb6 {[%clk 0:01:55.6]} 24... Rf8 {[%clk
0:00:09.5]} 25. g3 {[%clk 0:01:51.7]} 1-0

[Event "*** SCC Grand Prix: Titled Tuesday Blitz"]
[Site "Chess.com"]
[Date "2020.07.21"]
[Round "3"]
[White "Kobalia"]
[Black "talman67"]
[Result "1-0"]
[WhiteElo "2758"]
[BlackElo "2488"]
[TimeControl "180+1"]
[EndTime "10:25:49 PDT"]
[Termination "Kobalia won by resignation"]

1. e4 {[%clk 0:03:00.9]} 1... e5 {[%clk 0:02:59.6]} 2. Nf3 {[%clk 0:02:59.8]}
2... Nc6 {[%clk 0:03:00.1]} 3. Bb5 {[%clk 0:02:59.5]} 3... a6 {[%clk 0:02:59.8]}
4. Ba4 {[%clk 0:02:59.7]} 4... Nf6 {[%clk 0:03:00.1]} 5. O-O {[%clk 0:02:59.8]}
5... Nxe4 {[%clk 0:03:00.2]} 6. d4 {[%clk 0:02:57.9]} 6... b5 {[%clk 0:03:00.8]}
7. Bb3 {[%clk 0:02:57.2]} 7... d5 {[%clk 0:03:01.7]} 8. dxe5 {[%clk 0:02:57.4]}
8... Be6 {[%clk 0:03:02.3]} 9. Nbd2 {[%clk 0:02:57.5]} 9... Nc5 {[%clk
0:03:00.8]} 10. c3 {[%clk 0:02:53.5]} 10... d4 {[%clk 0:03:01.3]} 11. cxd4
{[%clk 0:02:16.3]} 11... Nxd4 {[%clk 0:02:59.6]} 12. Nxd4 {[%clk 0:02:14.6]}
12... Qxd4 {[%clk 0:03:00.5]} 13. Qf3 {[%clk 0:02:07.6]} 13... O-O-O {[%clk
0:02:43.7]} 14. Bxe6+ {[%clk 0:02:05.9]} 14... fxe6 {[%clk 0:02:39.9]} 15. Nb3
{[%clk 0:01:57.8]} 15... Qd5 {[%clk 0:02:37.9]} 16. Qh3 {[%clk 0:01:53.7]} 16...
Nd3 {[%clk 0:02:00.9]} 17. Bg5 {[%clk 0:01:49.3]} 17... Rd7 {[%clk 0:01:57.7]}
18. Rfd1 {[%clk 0:01:41.4]} 18... Bc5 {[%clk 0:01:55.8]} 19. Nxc5 {[%clk
0:01:36]} 19... Qxc5 {[%clk 0:01:53.4]} 20. Rxd3 {[%clk 0:01:34.9]} 20... Rxd3
{[%clk 0:01:54.3]} 21. Qxd3 {[%clk 0:01:34]} 21... Qxe5 {[%clk 0:01:55.2]} 22.
Qe3 {[%clk 0:01:24.2]} 22... Qxb2 {[%clk 0:01:37.6]} 23. Qxe6+ {[%clk
0:01:23.4]} 23... Kb8 {[%clk 0:01:37.4]} 24. Rc1 {[%clk 0:01:22.6]} 24... Rd8
{[%clk 0:01:35]} 25. h4 {[%clk 0:01:16.9]} 25... Rd6 {[%clk 0:01:34.4]} 26. Qe7
{[%clk 0:01:08.5]} 26... Qxc1+ {[%clk 0:01:23]} 27. Bxc1 {[%clk 0:01:07.8]}
27... Rd1+ {[%clk 0:01:23.9]} 28. Kh2 {[%clk 0:01:08]} 28... Rxc1 {[%clk
0:01:24.8]} 29. Qxg7 {[%clk 0:01:07.5]} 29... h5 {[%clk 0:01:24.3]} 30. Qh8+
{[%clk 0:01:06.9]} 30... Kb7 {[%clk 0:01:22.2]} 31. Qxh5 {[%clk 0:01:07.8]}
31... Rc2 {[%clk 0:01:22.8]} 32. Qd5+ {[%clk 0:01:06.8]} 32... c6 {[%clk
0:01:22.7]} 33. Qf7+ {[%clk 0:01:06.1]} 33... Kb6 {[%clk 0:01:23]} 34. h5 {[%clk
0:01:06.5]} 34... Rc4 {[%clk 0:01:19.1]} 35. g3 {[%clk 0:01:06.2]} 1-0